fUSD/lending_fUSD_20240117
["ID","MTS","AMOUNT","RATE_DAILY","PERIOD"]
[311884516,1705488643896,-620.15,0.00021917,2]
[311884518,1705488643906,-981.65,0.00021917,2]
[311884520,1705488643915,-500.0,0.00021917,2]
[311884522,1705488643924,-500.0,0.00021917,2]
[311884524,1705488643933,-738.68,0.00021917,2]
[311884526,1705488643942,-500.0,0.00021917,2]
[311884528,1705488643954,-500.0,0.00021917,2]
[311884530,1705488643964,-500.0,0.00021917,2]
[311884532,1705488643973,-670.27,0.00021917,2]
[311884534,1705488643982,-1167.72,0.00021917,2]
[311884536,1705488643992,-578.64,0.00021917,2]
[311884538,1705488644002,-532.8,0.00021917,2]
[311884540,1705488644011,-507.99,0.00021917,2]
[311884542,1705488644021,-500.0,0.00021917,2]
[311884544,1705488644030,-783.03,0.00021917,2]
[311884546,1705488644040,-500.0,0.00021917,2]
[311884548,1705488644049,-754.06,0.00021917,2]
[311884550,1705488644059,-500.0,0.00021917,2]
[311884552,1705488644068,-500.0,0.00021917,2]
[311884553,1705488644077,-1114.48,0.00021917,2]
[311884554,1705488644086,-500.0,0.00021917,2]
[311884555,1705488644095,-562.07,0.00021917,2]
[311884556,1705488644105,-1645.96,0.00021917,2]
[311884557,1705488644115,-674.36,0.00021917,2]
[311884558,1705488644124,-850.27,0.00021917,2]
[311884559,1705488644133,-500.0,0.00021917,2]
[311884560,1705488644143,-1835.63,0.00021917,2]
[311884561,1705488644152,-944.13,0.00021917,2]
[311884562,1705488644162,-500.0,0.00021917,2]
[311884563,1705488644171,-500.0,0.00021917,2]
[311884564,1705488644180,-383.81347406,0.00021917,2]
[311884565,1705488644190,-1260.44,0.00021917,2]
[311884567,1705488644199,-500.0,0.00021917,2]
[311884569,1705488644211,-500.0,0.00021917,2]
[311884571,1705488644219,-500.0,0.00021917,2]
[311884573,1705488644229,-337.42515239,0.00021917,2]
[311884575,1705488644238,-534.57,0.00021917,2]
[311884577,1705488644247,-1234.27,0.00021917,2]
[311884579,1705488644256,-500.0,0.00021917,2]
[311884581,1705488644265,-500.0,0.00021917,2]
[311884583,1705488644275,-500.0,0.00021917,2]
[311884585,1705488644284,-500.0,0.00021917,2]
[311884587,1705488644293,-500.0,0.00021917,2]
[311884589,1705488644303,-500.0,0.00021917,2]
[311884591,1705488644312,-1206.55,0.00021917,2]
[311884593,1705488644322,-1361.06,0.00021917,2]
[311884595,1705488644332,-500.0,0.00021917,2]
[311884597,1705488644341,-2353.5,0.00021917,2]
[311884599,1705488644351,-664.1,0.00021917,2]
[311884601,1705488644360,-500.0,0.00021917,2]
[311884603,1705488644369,-1094.02,0.00021917,2]
[311884606,1705488644378,-500.0,0.00021917,2]
[311884607,1705488644387,-500.0,0.00021917,2]
[311884609,1705488644397,-500.0,0.00021917,2]
[311884611,1705488644405,-1283.36,0.00021917,2]
[311884613,1705488644415,-703.86,0.00021917,2]
[311884616,1705488644424,-1134.98,0.00021917,2]
[311884617,1705488644434,-980.0,0.00021917,2]
[311884620,1705488644443,-500.0,0.00021917,2]
[311884621,1705488644452,-500.0,0.00021917,2]
[311884624,1705488644462,-2469.88,0.00021917,2]
[311884626,1705488644471,-500.0,0.00021917,2]
[311884628,1705488644481,-500.0,0.00021917,2]
[311884630,1705488644490,-1012.89,0.00021917,2]
[311884632,1705488644499,-500.0,0.00021917,2]
[311884634,1705488644507,-1069.45,0.00021917,2]
[311884635,1705488644516,-500.0,0.00021917,2]
[311884637,1705488644526,-500.0,0.00021917,2]
[311884639,1705488644535,-975.4,0.00021917,2]
[311884641,1705488644544,-500.0,0.00021917,2]
[311884643,1705488644554,-500.0,0.00021917,2]
[311884644,1705488644563,-500.0,0.00021917,2]
[311884645,1705488644572,-500.0,0.00021917,2]
[311884646,1705488644581,-702.8,0.00021917,2]
[311884647,1705488644590,-732.0,0.00021917,2]
[311884648,1705488644599,-575.11,0.00021917,2]
[311884649,1705488644608,-934.6,0.00021917,2]
[311884650,1705488644616,-500.0,0.00021917,2]
[311884652,1705488644625,-500.0,0.00021917,2]
[311884654,1705488644634,-500.0,0.00021917,2]
[311884656,1705488644643,-1406.56,0.00021917,2]
[311884658,1705488644653,-500.0,0.00021917,2]
[311884660,1705488644661,-500.0,0.00021917,2]
[311884662,1705488644671,-576.73,0.00021917,2]
[311884664,1705488644680,-500.0,0.00021917,2]
[311884666,1705488644689,-546.53,0.00021917,2]
[311884668,1705488644698,-764.4,0.00021917,2]
[311884670,1705488644708,-892.87,0.00021917,2]
[311884672,1705488644717,-500.0,0.00021917,2]
[311884674,1705488644726,-657.06,0.00021917,2]
[311884676,1705488644738,-500.0,0.00021917,2]
[311884678,1705488644747,-1356.54,0.00021917,2]
[311884680,1705488644756,-928.51,0.00021917,2]
[311884682,1705488644765,-662.42,0.00021917,2]
[311884684,1705488644774,-1053.66,0.00021917,2]
[311884686,1705488644783,-964.59,0.00021917,2]
[311884688,1705488644792,-1225.28,0.00021917,2]
[311884690,1705488644802,-500.0,0.00021917,2]
[311884692,1705488644811,-500.0,0.00021917,2]
[311884694,1705488644821,-500.0,0.00021917,2]
[311884696,1705488644830,-3630.56,0.00021917,5]
[311884698,1705488644839,-1009.29,0.00021917,2]
[311884700,1705488644848,-860.2,0.00021917,2]
[311884702,1705488644857,-402.90528083,0.00021917,2]
[311884704,1705488644866,-500.0,0.00021917,2]
[311884706,1705488644875,-500.0,0.00021917,2]
[311884708,1705488644884,-284.45564683,0.00021917,2]
[311884710,1705488644896,-3000.32,0.00021917,2]
[311884712,1705488644905,-500.0,0.00021917,2]
[311884714,1705488644914,-1976.53,0.00021917,2]
[311884716,1705488644923,-707.64,0.00021917,2]
[311884719,1705488644933,-1434.99,0.00021917,2]
[311884720,1705488644943,-853.73,0.00021917,2]
[311884723,1705488644954,-500.0,0.00021917,2]
[311884724,1705488644963,-1329.6,0.00021917,2]
[311884727,1705488644972,-336.22,0.00021917,2]
[311884728,1705488644981,-528.77,0.00021917,2]
[311884731,1705488644992,-500.0,0.00021917,2]
[311884732,1705488645001,-500.0,0.00021917,2]
[311884734,1705488645010,-667.94,0.00021917,2]
[311884737,1705488645019,-2576.0,0.00021917,2]
[311884738,1705488645030,-875.5,0.00021917,2]
[311884740,1705488645039,-705.1,0.00021917,2]
[311884743,1705488645049,-2366.12,0.00021917,2]
[311884745,1705488645057,-812.09,0.00021917,2]
[311884747,1705488645067,-500.0,0.00021917,2]
[311884749,1705488645076,-879.47,0.00021917,2]
[311884751,1705488645085,-500.0,0.00021917,2]
[311884753,1705488645095,-715.03,0.00021917,2]
[311884755,1705488645103,-11459.96,0.00021917,2]
[311884757,1705488645113,-500.0,0.00021917,2]
[311884759,1705488645122,-500.0,0.00021917,2]
[311884761,1705488645131,-515.6,0.00021917,2]
[311884763,1705488645140,-641.32,0.00021917,2]
[311884765,1705488645149,-1048.58,0.00021917,2]
[311884767,1705488645157,-500.0,0.00021917,2]
[311884769,1705488645167,-500.0,0.00021917,2]
[311884771,1705488645176,-5111.98,0.00021917,2]
[311884773,1705488645185,-552.35,0.00021917,2]
[311884775,1705488645193,-647.76,0.00021917,2]
[311884777,1705488645203,-500.0,0.00021917,2]
[311884779,1705488645212,-532.14,0.00021917,2]
[311884781,1705488645221,-500.0,0.00021917,2]
[311884783,1705488645230,-2490.86,0.00021917,2]
[311884785,1705488645238,-705.81,0.00021917,2]
[311884787,1705488645247,-14359.82,0.00021917,2]
[311884789,1705488645256,-1872.63,0.00021917,2]
[311884791,1705488645265,-2917.75,0.00021917,2]
[311884793,1705488645274,-807.83,0.00021917,2]
[311884794,1705488645284,-500.0,0.00021917,2]
[311884796,1705488645293,-1503.37,0.00021917,2]
[311884798,1705488645302,-589.12,0.00021917,2]
[311884800,1705488645311,-500.0,0.00021917,2]
[311884802,1705488645320,-500.0,0.00021917,2]
[311884804,1705488645329,-2138.02,0.00021917,2]
[311884806,1705488645338,-500.0,0.00021917,2]
[311884808,1705488645347,-500.0,0.00021917,2]
[311884810,1705488645356,-500.0,0.00021917,2]
[311884812,1705488645366,-554.76,0.00021917,2]
[311884814,1705488645375,-500.0,0.00021917,2]
[311884816,1705488645385,-2218.44,0.00021917,2]
[311884818,1705488645394,-500.0,0.00021917,2]
[311884821,1705488645403,-877.95,0.00021917,2]
[311884822,1705488645412,-3473.34,0.00021917,2]
[311884824,1705488645421,-868.74,0.00021917,2]
[311884826,1705488645430,-685.76,0.00021917,2]
[311884829,1705488645439,-500.0,0.00021917,2]
[311884830,1705488645449,-876.45,0.00021917,2]
[311884832,1705488645459,-4596.33,0.00021917,2]
[311884835,1705488645471,-500.0,0.00021917,2]
[311884836,1705488645480,-500.0,0.00021917,2]
[311884839,1705488645489,-500.0,0.00021917,2]
[311884840,1705488645498,-500.0,0.00021917,2]
[311884842,1705488645507,-14177.31,0.00021917,2]
[311884845,1705488645516,-4599.49,0.00021917,2]
[311884847,1705488645525,-3969.75,0.00021917,2]
[311884849,1705488645534,-832.29,0.00021917,2]
[311884851,1705488645543,-644.4,0.00021917,2]
[311884853,1705488645552,-500.0,0.00021917,2]
[311884855,1705488645561,-880.72,0.00021917,2]
[311884856,1705488645570,-1391.2,0.00021917,2]
[311884858,1705488645579,-500.0,0.00021917,2]
[311884860,1705488645589,-500.0,0.00021917,2]
[311884862,1705488645598,-663.88,0.00021917,2]
[311884865,1705488645607,-594.75,0.00021917,2]
[311884866,1705488645616,-9705.57,0.00021917,2]
[311884868,1705488645625,-703.46,0.00021917,2]
[311884870,1705488645635,-704.13,0.00021917,2]
[311884872,1705488645643,-605.03,0.00021917,2]
[311884874,1705488645652,-34615.34,0.00021917,2]
[311884876,1705488645661,-2075.5,0.00021917,2]
[311884878,1705488645670,-506.08,0.00021917,2]
[311884880,1705488645679,-500.0,0.00021917,2]
[311884882,1705488645688,-2045.47,0.00021917,2]
[311884884,1705488645697,-1039.99,0.00021917,2]
[311884886,1705488645706,-500.0,0.00021917,2]
[311884888,1705488645715,-500.0,0.00021917,2]
[311884890,1705488645724,-500.0,0.00021917,2]
[311884892,1705488645733,-2710.52,0.00021917,2]
[311884894,1705488645742,-464.36727745,0.00021917,2]
[311884896,1705488645751,-500.0,0.00021917,2]
[311884898,1705488645759,-2635.81,0.00021917,2]
[311884900,1705488645769,-943.05,0.00021917,2]
[311884902,1705488645778,-1689.36,0.00021917,2]
[311884904,1705488645787,-739.2,0.00021917,2]
[311884906,1705488645796,-2054.68,0.00021917,2]
[311884908,1705488645804,-500.0,0.00021917,2]
[311884909,1705488645813,-500.0,0.00021917,2]
[311884910,1705488645822,-646.66333815,0.00021917,2]
[311884912,1705488645831,-1099.64,0.00021917,2]
[311884913,1705488645840,-500.0,0.00021917,2]
[311884914,1705488645848,-869.67,0.00021917,2]
[311884915,1705488645858,-2357.57,0.00021917,2]
[311884916,1705488645866,-926.28,0.00021917,2]
[311884918,1705488645876,-1000.0,0.00021917,2]
[311884920,1705488645885,-713.68,0.00021917,2]
[311884922,1705488645894,-720.39,0.00021917,2]
[311884924,1705488645903,-873.55,0.00021917,2]
[311884926,1705488645913,-8393.93,0.00021917,2]
[311884928,1705488645923,-500.0,0.00021917,2]
[311884930,1705488645934,-511.73048817,0.00021917,2]
[311884933,1705488645945,-1390.52,0.00021917,2]
[311884934,1705488645958,-517.76,0.00021917,2]
[311884936,1705488645967,-910.32,0.00021917,2]
[311884938,1705488645977,-500.0,0.00021917,2]
[311884941,1705488645986,-500.0,0.00021917,2]
[311884943,1705488645995,-6332.89,0.00021917,2]
[311884945,1705488646005,-500.0,0.00021917,2]
[311884946,1705488646013,-500.0,0.00021917,2]
[311884947,1705488646022,-586.33,0.00021917,2]
[311884948,1705488646034,-1671.96,0.00021917,2]
[311884949,1705488646043,-500.0,0.00021917,2]
[311884951,1705488646052,-551.23,0.00021917,2]
[311884953,1705488646061,-9600.75,0.00021917,2]
[311884955,1705488646071,-500.0,0.00021917,2]
[311884956,1705488646080,-1754.58,0.00021917,2]
[311884957,1705488646089,-577.93,0.00021917,2]
[311884958,1705488646098,-3201.92,0.00021917,2]
[311884959,1705488646107,-1540.65,0.00021917,2]
[311884961,1705488646116,-4395.59,0.00021917,2]
[311884963,1705488646126,-614.63,0.00021917,2]
[311884965,1705488646135,-500.0,0.00021917,2]
[311884967,1705488646144,-525.25,0.00021917,2]
[311884969,1705488646153,-3830.63,0.00021917,2]
[311884971,1705488646162,-500.0,0.00021917,2]
[311884972,1705488646171,-520.89,0.00021917,2]
[311884974,1705488646181,-2125.29,0.00021917,2]
[311884975,1705488646190,-500.0,0.00021917,2]
[311884976,1705488646199,-1946.71,0.00021917,2]
[311884977,1705488646210,-500.0,0.00021917,2]
[311884978,1705488646219,-500.0,0.00021917,2]
[311884979,1705488646229,-500.0,0.00021917,2]
[311884980,1705488646238,-651.41,0.00021917,2]
[311884981,1705488646247,-1811.53,0.00021917,2]
[311884982,1705488646258,-2104.46,0.00021917,2]
[311884983,1705488646275,-1352.84,0.00021917,2]
[311884984,1705488646285,-500.0,0.00021917,2]
[311884985,1705488646294,-1000.0,0.00021917,2]
[311884987,1705488646303,-500.0,0.00021917,2]
[311884989,1705488646313,-500.0,0.00021917,2]
[311884990,1705488646328,-1952.99,0.00021917,2]
[311884991,1705488646341,-500.0,0.00021917,2]
[311884992,1705488646351,-500.0,0.00021917,2]
[311884993,1705488646360,-1847.02,0.00021917,2]
[311884994,1705488646370,-15253.77,0.00021917,2]
[311884995,1705488646379,-500.0,0.00021917,2]
[311884996,1705488646389,-513.87,0.00021917,2]
[311884997,1705488646398,-500.0,0.00021917,2]
[311884998,1705488646407,-1333.29,0.00021917,2]
[311884999,1705488646416,-500.0,0.00021917,2]
[311885000,1705488646425,-4946.71,0.00021917,2]
[311885001,1705488646435,-741.64,0.00021917,2]
[311885002,1705488646444,-1150.76,0.00021917,2]
[311885003,1705488646453,-500.0,0.00021917,2]
[311885004,1705488646464,-827.73,0.00021917,2]
[311885005,1705488646473,-500.0,0.00021917,2]
[311885006,1705488646482,-623.53,0.00021917,2]
[311885007,1705488646491,-1890.29,0.00021917,2]
[311885008,1705488646500,-500.0,0.00021917,2]
[311885009,1705488646509,-5453.76,0.00021917,2]
[311885010,1705488646519,-1964.2,0.00021917,2]
[311885011,1705488646528,-1403.16,0.00021917,2]
[311885012,1705488646537,-2002.08,0.00021917,2]
[311885013,1705488646546,-650.76,0.00021917,2]
[311885014,1705488646555,-852.34,0.00021917,2]
[311885015,1705488646564,-500.0,0.00021917,2]
[311885016,1705488646573,-1935.37,0.00021917,2]
[311885017,1705488646583,-500.0,0.00021917,2]
[311885018,1705488646593,-500.0,0.00021917,2]
[311885019,1705488646603,-500.0,0.00021917,2]
[311885020,1705488646612,-500.0,0.00021917,2]
[311885021,1705488646622,-500.0,0.00021917,2]
[311885023,1705488646631,-700.95,0.00021917,2]
[311885025,1705488646640,-1647.36,0.00021917,2]
[311885026,1705488646649,-831.0,0.00021917,2]
[311885027,1705488646658,-4859.08,0.00021917,2]
[311885028,1705488646668,-941.29,0.00021917,2]
[311885029,1705488646677,-1051.12,0.00021917,2]
[311885030,1705488646687,-1257.32,0.00021917,2]
[311885031,1705488646696,-2029.02,0.00021917,2]
[311885032,1705488646706,-704.24,0.00021917,2]
[311885033,1705488646715,-555.38,0.00021917,2]
[311885034,1705488646724,-500.0,0.00021917,2]
[311885035,1705488646733,-1071.83,0.00021917,2]
[311885036,1705488646742,-3042.81,0.00021917,2]
[311885037,1705488646751,-823.84,0.00021917,2]
[311885038,1705488646761,-500.0,0.00021917,2]
[311885039,1705488646769,-632.41766451,0.00021917,2]
[311885040,1705488646779,-770.24,0.00021917,2]
[311885041,1705488646788,-1738.03,0.00021917,2]
[311885042,1705488646797,-500.0,0.00021917,2]
[311885043,1705488646806,-500.0,0.00021917,2]
[311885044,1705488646815,-500.0,0.00021917,2]
[311885045,1705488646824,-1291.67,0.00021917,2]
[311885046,1705488646833,-1761.41,0.00021917,2]
[311885047,1705488646842,-500.0,0.00021917,2]
[311885048,1705488646851,-500.0,0.00021917,2]
[311885049,1705488646860,-821.85,0.00021917,2]
[311885050,1705488646869,-607.37,0.00021917,2]
[311885051,1705488646879,-866.94,0.00021917,2]
[311885052,1705488646888,-500.0,0.00021917,2]
[311885053,1705488646897,-4694.22,0.00021917,2]
[311885054,1705488646907,-2506.4,0.00021917,2]
[311885055,1705488646916,-1131.24,0.00021917,2]
[311885056,1705488646925,-500.0,0.00021917,2]
[311885057,1705488646935,-500.0,0.00021917,2]
[311885058,1705488646944,-500.0,0.00021917,2]
[311885059,1705488646955,-500.0,0.00021917,2]
[311885060,1705488646965,-3959.94,0.00021917,2]
[311885061,1705488646974,-500.0,0.00021917,2]
[311885062,1705488646983,-2094.15,0.00021917,2]
[311885063,1705488646992,-4319.86,0.00021917,2]
[311885064,1705488647002,-500.0,0.00021917,2]
[311885065,1705488647011,-2271.37,0.00021917,2]
[311885066,1705488647020,-500.0,0.00021917,2]
[311885067,1705488647030,-500.0,0.00021917,2]
[311885068,1705488647039,-500.0,0.00021917,2]
[311885069,1705488647048,-933.77,0.00021917,2]
[311885070,1705488647058,-1481.08,0.00021917,2]
[311885071,1705488647067,-7648.53,0.00021917,2]
[311885072,1705488647076,-1082.69,0.00021917,2]
[311885073,1705488647086,-500.0,0.00021917,2]
[311885074,1705488647095,-500.0,0.00021917,2]
[311885075,1705488647104,-1475.99,0.00021917,2]
[311885076,1705488647114,-300.0,0.00021917,2]
[311885077,1705488647123,-2575.21,0.00021917,2]
[311885078,1705488647132,-30053.43,0.00021917,2]
[311885079,1705488647143,-500.0,0.00021917,2]
[311885080,1705488647152,-500.0,0.00021917,2]
[311885081,1705488647161,-3632.01,0.00021917,2]
[311885082,1705488647170,-3264.64,0.00021917,2]
[311885083,1705488647180,-500.0,0.00021917,2]
[311885084,1705488647189,-500.0,0.00021917,2]
[311885085,1705488647199,-2030.7,0.00021917,2]
[311885086,1705488647209,-710.47,0.00021917,2]
[311885087,1705488647218,-506.82305287,0.00021917,2]
[311885088,1705488647227,-500.0,0.00021917,2]
[311885089,1705488647236,-500.0,0.00021917,2]
[311885090,1705488647245,-1035.23,0.00021917,2]
[311885091,1705488647254,-500.0,0.00021917,2]
[311885092,1705488647263,-714.35,0.00021917,2]
[311885093,1705488647272,-1128.71,0.00021917,2]
[311885094,1705488647281,-978.56,0.00021917,2]
[311885095,1705488647290,-1177.35,0.00021917,2]
[311885096,1705488647299,-2634.18,0.00021917,2]
[311885097,1705488647309,-500.0,0.00021917,2]
[311885098,1705488647318,-3800.16,0.00021917,5]
[311885099,1705488647327,-523.94,0.00021917,2]
[311885100,1705488647336,-500.0,0.00021917,2]
[311885101,1705488647345,-500.0,0.00021917,2]
[311885102,1705488647355,-2512.79,0.00021917,2]
[311885103,1705488647364,-500.0,0.00021917,2]
[311885104,1705488647373,-500.0,0.00021917,2]
[311885105,1705488647381,-500.0,0.00021917,2]
[311885106,1705488647391,-2279.78,0.00021917,2]
[311885107,1705488647400,-500.0,0.00021917,2]
[311885108,1705488647409,-502.90738061,0.00021917,2]
[311885109,1705488647418,-804.36,0.00021917,2]
[311885110,1705488647427,-1923.54,0.00021917,2]
[311885111,1705488647435,-1004.4,0.00021917,2]
[311885112,1705488647445,-4270.1,0.00021917,2]
[311885113,1705488647454,-500.0,0.00021917,2]
[311885114,1705488647465,-518.17,0.00021917,2]
[311885115,1705488647474,-500.0,0.00021917,2]
[311885116,1705488647484,-500.0,0.00021917,2]
[311885117,1705488647493,-1937.63,0.00021917,2]
[311885118,1705488647503,-2285.21,0.00021917,2]
[311885119,1705488647512,-500.0,0.00021917,2]
[311885120,1705488647521,-1888.51,0.00021917,2]
[311885121,1705488647530,-1603.9,0.00021917,2]
[311885122,1705488647547,-500.0,0.00021917,2]
[311885123,1705488647559,-500.0,0.00021917,2]
[311885124,1705488647569,-500.0,0.00021917,2]
[311885125,1705488647578,-1767.86,0.00021917,2]
[311885126,1705488647588,-1566.49,0.00021917,2]
[311885127,1705488647756,-593.48,0.00021917,2]
[311885128,1705488647774,-500.0,0.00021917,2]
[311885129,1705488647784,-500.0,0.00021917,2]
[311885130,1705488647793,-635.03,0.00021917,2]
[311885131,1705488647803,-1593.88,0.00021917,2]
[311885132,1705488647812,-2962.92,0.00021917,2]
[311885133,1705488647821,-500.0,0.00021917,2]
[311885134,1705488647831,-500.0,0.00021917,2]
[311885135,1705488647840,-500.0,0.00021917,2]
[311885136,1705488647849,-500.0,0.00021917,2]
[311885137,1705488647858,-3111.33,0.00021917,2]
[311885138,1705488647868,-2055.85,0.00021917,2]
[311885139,1705488647877,-726.57,0.00021917,2]
[311885140,1705488647887,-566.97,0.00021917,2]
[311885141,1705488647897,-500.0,0.00021917,2]
[311885142,1705488647906,-1947.16,0.00021917,2]
[311885143,1705488647915,-5505.1,0.00021917,2]
[311885144,1705488647925,-500.0,0.00021917,2]
[311885145,1705488647935,-624.17,0.00021917,2]
[311885146,1705488647946,-1370.09,0.00021917,2]
[311885147,1705488647963,-1853.52,0.00021917,2]
[311885148,1705488647972,-500.0,0.00021917,2]
[311885149,1705488647982,-500.0,0.00021917,2]
[311885150,1705488647991,-1637.1,0.00021917,2]
[311885151,1705488648001,-2052.01,0.00021917,2]
[311885152,1705488648010,-782.35,0.00021917,2]
[311885153,1705488648020,-500.0,0.00021917,2]
[311885154,1705488648031,-4410.08,0.00021917,2]
[311885155,1705488648040,-500.0,0.00021917,2]
[311885156,1705488648049,-8725.03,0.00021917,2]
[311885157,1705488648059,-6524.51,0.00021917,2]
[311885158,1705488648068,-276.97112645,0.00021917,2]
[311885159,1705488648078,-6524.51,0.00021917,2]
[311885160,1705488648087,-6524.51,0.00021917,2]
[311885161,1705488648097,-6524.51,0.00021917,2]
[311885162,1705488648106,-500.0,0.00021917,2]
[311885163,1705488648116,-1981.96,0.00021917,2]
[311885164,1705488648125,-500.0,0.00021917,2]
[311885165,1705488648135,-500.0,0.00021917,2]
[311885166,1705488648145,-1215.13,0.00021917,2]
[311885167,1705488648154,-2824.61,0.00021917,2]
[311885168,1705488648164,-2115.15,0.00021917,2]
[311885169,1705488648174,-500.0,0.00021917,2]
[311885170,1705488648185,-2085.9,0.00021917,2]
[311885171,1705488648194,-500.0,0.00021917,2]
[311885172,1705488648204,-500.0,0.00021917,2]
[311885173,1705488648215,-2812.02,0.00021917,2]
[311885174,1705488648227,-500.0,0.00021917,2]
[311885175,1705488648236,-3655.16,0.00021917,2]
[311885176,1705488648246,-1068.5,0.00021917,2]
[311885177,1705488648254,-500.0,0.00021917,2]
[311885178,1705488648264,-500.0,0.00021917,2]
[311885179,1705488648273,-695.59,0.00021917,2]
[311885180,1705488648282,-540.4,0.00021917,2]
[311885181,1705488648291,-500.0,0.00021917,2]
[311885182,1705488648301,-623.15,0.00021917,2]
[311885183,1705488648310,-1194.74,0.00021917,2]
[311885184,1705488648320,-2599.42,0.00021917,2]
[311885185,1705488648330,-1422.77,0.00021917,2]
[311885186,1705488648340,-2619.41,0.00021917,2]
[311885187,1705488648349,-3187.15,0.00021917,2]
[311885188,1705488648359,-500.0,0.00021917,2]
[311885189,1705488648369,-500.0,0.00021917,2]
[311885190,1705488648379,-635.23,0.00021917,2]
[311885191,1705488648389,-500.0,0.00021917,2]
[311885192,1705488648398,-500.0,0.00021917,2]
[311885193,1705488648407,-1574.29,0.00021917,2]
[311885194,1705488648417,-571.81,0.00021917,2]
[311885195,1705488648427,-1700.52,0.00021917,2]
[311885196,1705488648436,-500.0,0.00021917,2]
[311885197,1705488648446,-1079.73,0.00021917,2]
[311885198,1705488648456,-901.83,0.00021917,2]
[311885199,1705488648467,-1569.06,0.00021917,2]
[311885200,1705488648476,-506.98,0.00021917,2]
[311885201,1705488648486,-3173.12,0.00021917,2]
[311885202,1705488648495,-500.0,0.00021917,2]
[311885203,1705488648504,-537.59,0.00021917,2]
[311885204,1705488648514,-500.0,0.00021917,2]
[311885205,1705488648524,-500.0,0.00021917,2]
[311885206,1705488648533,-500.0,0.00021917,2]
[311885207,1705488648543,-500.0,0.00021917,2]
[311885208,1705488648552,-1317.13,0.00021917,2]
[311885209,1705488648563,-500.0,0.00021917,2]
[311885210,1705488648572,-500.0,0.00021917,2]
[311885211,1705488648582,-1408.0,0.00021917,2]
[311885212,1705488648593,-1071.34,0.00021917,2]
[311885213,1705488648602,-2581.89,0.00021917,2]
[311885214,1705488648612,-500.0,0.00021917,2]
[311885215,1705488648623,-9485.3,0.00021917,2]
[311885216,1705488648632,-1270.58,0.00021917,2]
[311885217,1705488648642,-860.48,0.00021917,2]
[311885218,1705488648651,-500.0,0.00021917,2]
[311885219,1705488648661,-889.73,0.00021917,2]
[311885220,1705488648670,-2433.65,0.00021917,2]
[311885221,1705488648680,-8774.2,0.00021917,2]
[311885222,1705488648690,-646.1,0.00021917,2]
[311885223,1705488648699,-705.19,0.00021917,2]
[311885224,1705488648710,-1328.91,0.00021917,2]
[311885225,1705488648720,-2828.14,0.00021917,2]
[311885226,1705488648729,-818.39,0.00021917,2]
[311885227,1705488648738,-1298.31,0.00021917,2]
[311885228,1705488648748,-2259.7,0.00021917,2]
[311885229,1705488648758,-200.0,0.00021923,2]
[311885230,1705488648767,-150.0,0.00021969,2]
[311885231,1705488648777,-150.0,0.00021969,2]